bitfinex/quotes_SOLUSD_20220218
["timestamp","ask_amount","ask_price","bid_price","bid_amount"]
[1645143324717,5.353,93.429,93.363,24.9343]
[1645143324920,5.353,93.431,93.361,40.4914472]
[1645143325116,106.0,93.427,93.331,5.353]
[1645143325319,106.0,93.419,93.331,5.353]
[1645143325518,16.0719,93.4,93.324,24.6563]
[1645143325718,22.9881,93.399,93.324,24.6563]
[1645143325919,28.3431,93.399,93.33,16.0721]
[1645143326116,28.3431,93.399,93.331,50.21558325]
[1645143328322,28.3431,93.399,93.34,16.0703]
[1645143328620,28.3431,93.399,93.325,5.355]
[1645143328621,16.0719,93.39,93.325,5.355]
[1645143328833,16.0719,93.39,93.311,15.9511]
[1645143328834,111.355,93.389,93.311,15.9511]
[1645143329037,1.48978919,93.388,93.257,5.356]
[1645143329221,1.48978919,93.38,93.253,5.357]
[1645143329419,1.48978919,93.357,93.224,5.357]
[1645143329620,7.00978919,93.346,93.234,48.90198652]
[1645143329821,106.0,93.339,93.207,5.359]
[1645143330120,1.48978919,93.333,93.205,5.359]
[1645143330323,106.0,93.319,93.192,5.361]
[1645143330521,106.0,93.309,93.197,5.36]
[1645143330719,106.0,93.309,93.185,5.361]
[1645143330720,16.0933,93.29,93.185,5.361]
[1645143330965,15.4,93.28,93.186,40.22767054]
[1645143331119,106.0,93.278,93.186,40.22767054]
[1645143331318,5.362,93.277,93.186,40.22767054]
[1645143331723,5.362,93.279,93.186,40.22767054]
[1645143331924,16.0955,93.27,93.17,16.0966]
[1645143332124,106.0,93.268,93.168,5.363]
[1645143332524,106.0,93.266,93.154,5.363]
[1645143332826,106.0,93.266,93.179,43.88287183]
[1645143332827,2.52666602,93.265,93.179,43.88287183]
[1645143333021,106.0,93.264,93.179,43.88287183]
[1645143333221,106.0,93.249,93.179,43.88287183]
[1645143333438,16.1009,93.24,93.179,43.88287183]
[1645143333823,106.0,93.248,93.179,43.88287183]
[1645143334023,15.4,93.26,93.183,7.88966602]
[1645143334228,5.363,93.259,93.183,7.88966602]
[1645143334425,15.4,93.26,93.184,2.52666602]
[1645143334624,15.4,93.26,93.19,16.0935]
[1645143334825,5.363,93.279,93.191,5.363]
[1645143335022,5.363,93.279,93.191,7.88966602]
[1645143335223,5.363,93.279,93.192,2.52666602]
[1645143335427,15.4,93.28,93.193,46.47209757]
[1645143335925,15.4,93.28,93.194,2.52666602]
[1645143336125,15.4,93.28,93.2,16.0917]
[1645143336426,5.362,93.279,93.201,5.362]
[1645143336627,5.362,93.279,93.193,41.11009757]
[1645143336831,106.0,93.278,93.193,41.11009757]
[1645143337028,106.0,93.276,93.193,41.11009757]
[1645143337429,106.0,93.274,93.193,41.11009757]
[1645143337629,106.0,93.269,93.193,41.11009757]
[1645143337833,106.0,93.259,93.193,41.11009757]
[1645143338031,106.0,93.259,93.182,0.0653513]
[1645143338229,15.4,93.26,93.182,0.0653513]
[1645143338230,106.0,93.257,93.182,0.0653513]
[1645143338434,106.0,93.255,93.182,0.0653513]
[1645143338628,15.4,93.24,93.182,0.0653513]
[1645143338831,16.1033,93.23,93.182,0.0653513]
[1645143339256,5.364,93.229,93.182,0.0653513]
[1645143339730,15.4,93.23,93.182,0.0653513]
[1645143340132,5.364,93.229,93.182,0.0653513]
[1645143340335,16.1038,93.22,93.182,0.0653513]
[1645143340534,5.364,93.219,93.182,0.0653513]
[1645143341563,5.364,93.229,93.182,0.0653513]
[1645143342337,16.105,93.21,93.182,0.0653513]
[1645143347737,108.52666602,93.209,93.182,0.0653513]
[1645143347954,5.0,93.199,93.176,0.0013076]
[1645143348137,106.0,93.197,93.176,0.0013076]
[1645143348336,106.0,93.195,93.176,0.0013076]
[1645143348537,5.0,93.199,93.176,0.0013076]
[1645143348538,5.365,93.197,93.176,0.0013076]
[1645143348839,2.52666602,93.198,93.176,0.0013076]
[1645143348840,15.4,93.19,93.176,0.0013076]
[1645143349236,5.365,93.189,93.176,0.0013076]
[1645143349438,7.89166602,93.189,93.176,0.0013076]
[1645143349637,5.365,93.189,93.176,0.0013076]
[1645143350238,2.52666602,93.188,93.176,0.0013076]
[1645143350435,5.365,93.187,93.176,0.0013076]
[1645143350641,108.83620055,93.186,93.176,0.0013076]
[1645143350838,106.0,93.184,93.176,0.0013076]
[1645143351038,5.365,93.185,93.176,0.0013076]
[1645143351241,2.52666602,93.183,93.176,0.0013076]
[1645143351442,5.365,93.182,93.176,0.0013076]
[1645143351640,106.0,93.181,93.176,0.0013076]
[1645143351842,5.0,93.178,93.072,5.365]
[1645143352042,5.0,93.178,93.059,147.39470319]
[1645143352043,106.0,93.149,93.137,0.5228104]
[1645143352243,5.368,93.148,93.06,50.78981747]
[1645143352441,5.37,93.149,93.061,5.37]
[1645143352644,5.37,93.149,93.061,4.87]
[1645143352847,2.52666602,93.148,93.061,4.87]
[1645143353042,5.37,93.147,93.06,50.78981747]
[1645143353443,2.52666602,93.146,93.06,50.78981747]
[1645143353842,106.0,93.144,93.06,50.78981747]
[1645143354051,15.4,93.14,93.06,50.78981747]
[1645143354344,31.5199,93.14,93.06,50.78981747]
[1645143354541,5.37,93.139,93.06,50.78981747]
[1645143355445,15.4,93.14,93.061,2.52666602]
[1645143355644,15.4,93.14,93.061,7.89666602]
[1645143356046,15.4,93.14,93.062,2.52666602]
[1645143356245,15.4,93.14,93.063,5.37]
[1645143356646,15.4,93.14,93.064,2.52666602]
[1645143357045,15.4,93.14,93.065,5.37]
[1645143357499,15.4,93.14,93.066,2.52666602]
[1645143357856,15.4,93.14,93.067,5.37]
[1645143359150,106.0,93.139,93.067,5.37]
[1645143359954,106.0,93.137,93.06,50.78981747]
[1645143360151,106.0,93.135,93.06,50.78981747]
[1645143360552,106.0,93.133,93.06,50.78981747]
[1645143360753,106.0,93.119,93.06,50.78981747]
[1645143362571,106.0,93.109,93.058,0.0049282]
[1645143362772,106.0,93.099,93.008,0.53738041]
[1645143363571,106.0,93.099,93.009,43.50451283]
[1645143363973,106.0,93.089,93.009,43.50451283]
[1645143364176,27.41059626,93.098,93.008,0.53738041]
[1645143364177,106.0,93.079,93.008,0.53738041]
[1645143364375,106.0,93.079,93.036,0.001915]
[1645143364573,106.0,93.077,93.036,0.001915]
[1645143364773,112.21,93.077,93.036,0.001915]
[1645143364978,106.0,93.075,93.036,0.001915]
[1645143365380,106.0,93.069,93.036,0.001915]
[1645143365576,106.0,93.059,93.036,0.001915]
[1645143366173,106.0,93.057,93.036,0.001915]
[1645143366675,106.0,93.055,93.036,0.001915]
[1645143366878,106.0,93.049,93.036,0.001915]
[1645143367089,106.0,93.049,93.007,0.00383]
[1645143367275,106.0,93.039,93.0,0.00383]
[1645143367475,106.0,93.029,92.989,1.3971337]
[1645143367676,106.0,93.027,92.989,0.0028647]
[1645143367980,106.0,93.015,92.91,5.375]
[1645143368176,106.0,93.013,92.885,5.377]
[1645143368378,192.45,93.0,92.877,5.377]
[1645143368577,15.4,92.99,92.874,5.377]
[1645143368776,15.4,92.99,92.94,44.74037967]
[1645143368978,15.4,92.99,92.941,0.3687302]
[1645143369220,15.4,92.99,92.94,44.74037967]
[1645143369221,15.4,92.99,92.914,2.52666602]
[1645143369382,23.9482,93.011,92.914,2.52666602]
[1645143369383,106.0,93.008,92.914,2.52666602]
[1645143369587,106.0,93.008,92.887,113.9]
[1645143369588,106.0,92.999,92.904,2.52666602]
[1645143369989,106.0,92.999,92.888,5.378]
[1645143370286,106.0,92.989,92.874,5.378]
[1645143370481,106.0,92.979,92.867,5.38]
[1645143370683,106.0,92.965,92.857,0.9167817]
[1645143370888,106.0,92.959,92.857,0.9167817]
[1645143371084,16.1619,92.93,92.857,0.9167817]
[1645143371343,15.4,92.92,92.858,52.08313293]
[1645143371488,15.4,92.94,92.858,57.46513293]
[1645143371685,15.4,92.95,92.858,56.46513293]
[1645143371885,15.4,92.95,92.859,18.47883905]
[1645143372084,15.4,92.95,92.86,5.381]
[1645143372485,5.381,92.949,92.858,5.381]
[1645143372686,5.381,92.949,92.857,0.9167817]
[1645143372884,15.4,92.95,92.857,0.9167817]
[1645143373088,15.4,93.0,92.859,36.14688033]
[1645143373300,15.4,93.01,92.872,52.94679432]
[1645143373491,5.38,93.03,92.873,54.21]
[1645143373690,15.4,93.05,92.892,55.26362788]
[1645143373887,2.52666602,93.046,92.9,15.4]
[1645143374087,2.52666602,93.046,92.901,5.377]
[1645143374291,106.0,93.044,92.901,15.80484078]
[1645143374523,15.4,93.03,92.911,40.80572671]
[1645143374688,15.4,93.03,92.912,5.378]
[1645143374890,5.378,93.029,92.912,5.378]
[1645143375094,55.37316602,93.029,92.911,88.41492671]
[1645143375492,2.52666602,93.028,92.912,5.378]
[1645143375696,5.378,93.027,92.912,5.378]
[1645143375892,5.378,93.028,92.912,7.90466602]
[1645143376091,5.378,93.047,92.913,2.52666602]
[1645143376290,2.52666602,93.058,92.914,5.377]
[1645143376490,2.52666602,93.058,92.914,15.80484078]
[1645143376790,15.4,93.05,92.92,16.1395]
[1645143376994,5.377,93.049,92.921,5.376]
[1645143377290,5.377,93.049,92.921,7.90266602]
[1645143377492,2.52666602,93.048,92.921,7.90266602]
[1645143377791,15.4,93.05,92.922,2.52666602]
[1645143377792,5.377,93.047,92.922,2.52666602]
[1645143378002,5.377,93.048,92.93,16.1374]
[1645143378193,5.377,93.046,92.932,51.14568542]
[1645143378391,106.0,93.046,92.932,51.14568542]
[1645143378591,106.0,93.044,92.933,7.90266602]
[1645143379090,5.376,93.046,92.933,7.90266602]
[1645143379091,106.0,93.042,92.933,5.376]
[1645143379494,106.0,93.04,92.933,5.376]
[1645143379694,121.4,93.04,92.933,5.376]
[1645143379893,106.0,93.038,92.933,5.376]
[1645143380193,106.0,93.036,92.933,5.376]
[1645143380494,2.52666602,93.035,92.932,51.14568542]
[1645143380693,106.0,93.019,92.932,51.14568542]
[1645143381095,106.0,93.017,92.932,51.14568542]
[1645143381793,2.52666602,93.016,92.932,51.14568542]
[1645143381997,106.0,93.014,92.932,51.14568542]
[1645143382195,106.0,93.012,92.932,51.14568542]
[1645143382398,15.4,93.0,92.932,51.14568542]
[1645143383395,5.378,92.999,92.932,51.14568542]
[1645143383601,106.0,92.998,92.923,23.3281]
[1645143383793,15.4,93.0,92.923,23.3281]
[1645143383994,5.378,92.998,92.923,23.3281]
[1645143384603,5.378,92.998,92.924,44.54999203]
[1645143384805,31.5421,93.03,92.925,5.378]
[1645143385001,15.4,93.03,92.925,5.378]
[1645143385203,5.378,93.033,92.925,7.90466602]
[1645143385402,2.52666602,93.039,92.93,16.1385]
[1645143385606,15.4,93.07,92.931,5.377]
[1645143385808,5.376,93.052,92.931,7.90366602]
[1645143386009,31.5349,93.07,92.931,7.90366602]
[1645143386010,5.376,93.069,92.931,7.90366602]
[1645143386212,5.376,93.069,92.932,108.52666602]
[1645143386409,2.52666602,93.083,92.934,106.0]
[1645143386613,2.52666602,93.083,92.933,5.376]
[1645143386614,106.0,93.081,92.936,106.0]
[1645143386813,106.0,93.079,92.951,47.73548276]
[1645143387010,21.5074,93.08,92.951,47.73548276]
[1645143387011,106.0,93.069,92.952,49.1315]
[1645143387259,106.0,93.067,92.952,49.1315]
[1645143387716,106.0,93.065,92.951,47.73548276]
[1645143387913,106.0,93.049,92.951,47.73548276]
[1645143388126,106.0,93.039,92.951,47.73548276]
[1645143388338,106.0,93.029,92.951,47.73548276]
[1645143388526,106.0,93.029,92.92,16.1402]
[1645143388726,106.0,93.027,92.92,16.1402]
[1645143388926,15.4,93.02,92.92,16.1402]
[1645143389128,111.378,93.019,92.919,47.1599]
[1645143389628,7.90466602,93.019,92.92,55.29397264]
[1645143389832,2.52666602,93.018,92.919,47.1599]
[1645143390028,5.378,93.017,92.919,47.1599]
[1645143390530,108.52666602,93.016,92.886,22.5867]
[1645143390731,106.0,93.009,92.887,39.65694435]
[1645143390934,106.0,92.999,92.887,39.65694435]
[1645143391130,106.0,92.997,92.887,39.65694435]
[1645143391531,106.0,92.997,92.888,2.52666602]
[1645143391733,27.26866602,92.998,92.89,16.146]
[1645143391734,2.52666602,92.998,92.89,16.146]
[1645143391931,2.52666602,93.028,92.891,5.378]
[1645143392132,5.378,93.028,92.892,106.0]
[1645143392336,5.378,93.028,92.894,106.0]
[1645143392542,5.378,93.048,92.896,106.0]
[1645143392749,16.88978919,93.06,92.895,5.378]
[1645143392750,106.0,93.054,92.911,111.0]
[1645143392938,2.52666602,93.077,92.921,106.0]
[1645143393136,5.376,93.076,92.923,106.0]
[1645143393559,5.376,93.079,92.925,106.0]
[1645143393734,106.0,93.079,92.927,106.0]
[1645143393935,106.0,93.077,92.941,106.0]
[1645143394135,106.0,93.077,92.945,106.0]
[1645143394333,106.0,93.077,92.96,16.1313]
[1645143394638,106.0,93.077,92.951,106.0]
[1645143394639,106.0,93.077,92.962,51.07374962]
[1645143395635,106.0,93.075,92.962,51.07374962]
[1645143395837,106.0,93.075,92.963,5.375]
[1645143396038,106.0,93.073,92.963,5.375]
[1645143396236,106.0,93.073,92.962,51.07374962]
[1645143396438,106.0,93.069,92.962,51.07374962]
[1645143396736,105.5,93.059,92.962,51.07374962]
[1645143397238,2.52666602,93.058,92.962,51.07374962]
[1645143397439,105.5,93.049,92.962,51.07374962]
[1645143397637,5.376,93.048,92.962,51.07374962]
[1645143397855,5.376,93.058,92.962,51.07374962]
[1645143398039,106.0,93.057,92.962,51.07374962]
[1645143398439,106.0,93.055,92.962,51.07374962]
[1645143398638,106.0,93.055,92.963,24.4422]
[1645143399340,111.375,93.069,92.964,2.52666602]
[1645143399543,106.0,93.069,92.964,113.90166602]
[1645143399740,106.0,93.069,92.964,7.90166602]
[1645143399943,106.0,93.069,92.965,2.52666602]
[1645143400139,106.0,93.069,92.966,5.375]
[1645143400540,106.0,93.069,92.967,2.52666602]
[1645143400943,106.0,93.069,92.968,5.375]
[1645143401343,106.0,93.069,92.97,16.1332]
[1645143401842,106.0,93.069,92.971,5.375]
[1645143402244,106.0,93.069,92.97,5.375]
[1645143402454,106.0,93.069,92.972,2.52666602]
[1645143402842,106.0,93.069,92.97,12.93]
[1645143403047,106.0,93.067,92.981,52.95537948]
[1645143403642,106.0,93.065,92.981,52.95537948]
[1645143404043,106.0,93.063,92.981,52.95537948]
[1645143404243,106.0,93.063,92.963,24.4422]
[1645143404444,106.0,93.061,92.97,16.1334]
[1645143404650,106.0,93.059,92.97,16.1334]
[1645143405050,5.375,93.058,92.97,16.1334]
[1645143405247,106.0,93.057,92.97,16.1334]
[1645143405449,105.5,93.057,92.97,16.1334]
[1645143405649,105.5,93.055,92.97,16.1334]
[1645143406051,5.375,93.054,92.97,16.1334]
[1645143406248,5.375,93.054,92.971,52.55638693]
[1645143406447,5.375,93.054,92.98,16.1319]
[1645143406651,105.5,93.055,92.98,16.1319]
[1645143406848,5.375,93.054,92.98,16.1319]
[1645143407050,105.5,93.055,92.98,16.1319]
[1645143407253,105.5,93.053,92.971,52.55638693]
[1645143407455,105.5,93.051,92.971,52.55638693]
[1645143407854,105.5,93.049,92.971,52.55638693]
[1645143408354,5.375,93.05,92.971,52.55638693]
[1645143408556,106.0,93.059,92.971,52.55638693]
[1645143408753,5.375,93.058,92.971,52.55638693]
[1645143409456,106.0,93.057,92.971,52.55638693]
[1645143409876,5.375,93.056,92.971,52.55638693]
[1645143410054,106.0,93.057,92.971,52.55638693]
[1645143410662,5.375,93.059,92.971,52.55638693]
[1645143410863,106.0,93.069,92.98,16.1319]
[1645143411061,106.0,93.069,92.981,5.374]
[1645143411261,106.0,93.069,92.981,2.52666602]
[1645143411467,106.0,93.069,92.982,2.52666602]
[1645143412465,106.0,93.069,92.991,53.1527203]
[1645143412668,154.2405,93.089,92.991,53.1527203]
[1645143412872,48.2405,93.089,92.992,25.65906602]
[1645143413067,48.2405,93.089,92.992,31.03306602]
[1645143413268,48.2405,93.089,92.993,2.52666602]
[1645143413472,48.2405,93.089,93.0,16.1284]
[1645143413669,48.2405,93.089,93.001,5.373]
[1645143413869,48.2405,93.089,93.001,7.89966602]
[1645143414101,106.0,93.109,93.002,2.52666602]
[1645143414102,1.48978919,93.106,93.002,2.52666602]
[1645143414287,1.48978919,93.106,93.003,5.373]
[1645143414487,5.373,93.105,93.003,5.373]
[1645143414689,6.86278919,93.107,93.003,5.373]
[1645143414893,6.86278919,93.108,93.005,45.21446525]
[1645143415090,5.373,93.108,93.006,5.373]
[1645143415292,111.373,93.109,93.02,16.1244]
[1645143415493,106.0,93.109,93.021,51.64878843]
[1645143415691,5.372,93.108,93.021,51.64878843]
[1645143417195,106.0,93.107,93.021,51.64878843]
[1645143417396,106.0,93.107,93.03,16.1239]
[1645143418798,106.0,93.099,93.005,5.372]
[1645143419000,106.0,93.099,93.004,23.6498]
[1645143419303,106.0,93.097,93.004,23.6498]
[1645143419704,2.52666602,93.096,93.004,23.6498]
[1645143419906,106.0,93.095,93.004,23.6498]
[1645143420101,129.5876,93.095,93.004,23.6498]
[1645143420302,106.0,93.089,93.004,23.6498]
[1645143421305,106.0,93.079,92.969,5.373]
[1645143421520,106.0,93.079,92.96,53.7735]
[1645143421521,106.0,93.069,92.98,16.1331]
[1645143421905,106.0,93.069,92.981,49.97473237]
[1645143422127,2.52666602,93.068,92.981,49.97473237]
[1645143422304,24.19038919,93.079,92.981,49.97473237]
[1645143422305,22.7006,93.079,92.981,49.97473237]
[1645143422547,22.7006,93.079,92.99,16.131]
[1645143422906,22.7006,93.079,92.991,2.52666602]
[1645143423304,22.7006,93.079,92.982,5.374]
[1645143423904,128.7006,93.079,93.009,44.38108636]
[1645143424106,106.0,93.077,92.968,2.52666602]
[1645143424307,106.0,93.075,92.969,5.374]
[1645143424507,106.0,93.075,92.957,2.52666602]
[1645143424708,106.0,93.073,92.958,5.374]
[1645143425109,106.0,93.071,92.975,49.66035283]
[1645143425307,106.0,93.069,92.991,43.28948625]
[1645143425532,106.0,93.069,92.99,16.1314]
[1645143425711,106.0,93.067,92.958,5.374]
[1645143426208,30.1563,93.068,92.96,16.1366]
[1645143426209,106.0,93.059,92.96,16.1366]
[1645143426408,106.0,93.049,92.93,53.7906]
[1645143426608,106.0,93.047,92.931,43.68410749]
[1645143426843,106.0,93.047,92.931,46.21077351]
[1645143427209,106.0,93.047,92.932,2.52666602]
[1645143427408,106.0,93.045,92.932,2.52666602]
[1645143427609,106.0,93.043,92.932,2.52666602]
[1645143427809,106.0,93.039,92.932,2.52666602]
[1645143428312,106.0,93.029,92.95,16.1387]
[1645143428709,16.1391,93.03,92.95,16.1387]
[1645143428710,106.0,93.027,92.95,16.1387]
[1645143429510,106.0,93.029,92.951,2.52666602]
[1645143429710,29.068,93.03,92.951,2.52666602]
[1645143430313,29.068,93.03,92.94,16.1403]
[1645143430511,106.0,93.009,92.91,53.8021]
[1645143430714,16.143,93.01,92.902,24.1946]
[1645143430715,106.0,93.007,92.908,2.52666602]
[1645143431211,106.0,93.007,92.914,48.51722294]
[1645143431712,106.0,93.007,92.92,16.1425]
[1645143432111,106.0,93.007,92.921,2.52666602]
[1645143432513,24.9405,93.006,92.921,2.52666602]
[1645143433319,106.0,93.005,92.93,16.1413]
[1645143433525,106.0,93.005,92.931,46.25029129]
[1645143434320,106.0,93.005,92.932,2.52666602]
[1645143434515,24.9405,93.006,92.94,16.1403]
[1645143435417,24.9405,93.006,92.933,5.378]
[1645143435623,24.9405,93.006,92.931,46.25029129]
[1645143436120,106.0,93.005,92.931,46.25029129]
[1645143436317,111.378,93.005,92.931,46.25029129]
[1645143437528,106.0,93.005,92.931,46.25029129]
[1645143438120,106.0,93.003,92.931,46.25029129]
[1645143438532,106.0,93.001,92.931,46.25029129]
[1645143439725,24.9405,93.006,92.931,46.25029129]
[1645143439925,23.484,93.019,92.932,2.52666602]
[1645143440126,5.377,93.046,92.932,2.52666602]
[1645143440326,46.0196,93.045,92.933,5.377]
[1645143440746,106.0,93.043,92.934,2.52666602]
[1645143440948,106.0,93.041,92.934,26.99776602]
[1645143441148,106.0,93.039,92.935,5.377]
[1645143441355,106.0,93.039,92.94,16.1404]
[1645143444756,106.0,93.039,92.94,18.66706602]
[1645143445359,5.377,93.044,92.94,48.3035874]
[1645143445560,46.0196,93.045,92.941,14.76470795]
[1645143445965,46.0196,93.045,92.971,44.68910538]
[1645143446363,46.0196,93.045,92.972,2.52666602]
[1645143446560,1.48978919,93.084,92.972,2.52666602]
[1645143446761,1.48978919,93.091,92.973,48.6682]
[1645143446960,5.374,93.09,92.973,48.6682]
[1645143447159,1.48978919,93.096,92.974,2.52666602]
[1645143447361,5.374,93.089,92.99,16.1302]
[1645143447562,106.0,93.088,92.991,41.35221897]
[1645143447761,106.0,93.086,92.991,41.35221897]
[1645143448967,22.8709,93.087,92.991,41.35221897]
[1645143448968,106.0,93.084,92.991,41.35221897]
[1645143449364,106.0,93.082,93.0,16.1294]
[1645143449764,106.0,93.08,93.0,16.1294]
[1645143450165,106.0,93.078,93.0,16.1294]
[1645143451068,108.52666602,93.078,92.974,5.374]
[1645143451322,106.0,93.076,92.96,66.7042]
[1645143451472,106.0,93.074,92.961,5.374]
[1645143451666,106.0,93.074,92.974,5.374]
[1645143451866,106.0,93.072,92.975,48.35828436]
[1645143452067,23.2108,93.073,92.976,5.374]
[1645143452268,106.0,93.072,92.98,16.1334]
[1645143452471,106.0,93.072,92.981,5.374]
[1645143452872,23.2108,93.073,92.981,2.52666602]
[1645143453071,23.2108,93.073,92.982,7.90066602]
[1645143453272,23.2108,93.073,92.982,2.52666602]
[1645143453473,23.2108,93.073,92.983,7.90066602]
[1645143453676,23.2108,93.073,92.983,2.52666602]
[1645143453872,23.2108,93.073,92.984,5.374]
[1645143454377,23.2108,93.073,93.001,49.89126138]
[1645143454573,23.2108,93.073,93.001,56.08126138]
[1645143454772,23.2108,93.073,93.002,2.52666602]
[1645143456473,106.0,93.089,93.002,2.52666602]
[1645143456474,106.0,93.089,93.021,53.62052446]
[1645143457074,23.4018,93.098,93.021,53.62052446]
[1645143457274,1.48978919,93.114,93.021,53.62052446]
[1645143457478,1.48978919,93.12,93.03,16.1251]
[1645143457688,1.48978919,93.134,93.04,12.93]
[1645143457876,1.48978919,93.138,93.042,106.0]
[1645143458085,1.48978919,93.152,93.042,106.0]
[1645143458274,1.48978919,93.152,93.041,108.66678175]
[1645143458275,1.48978919,93.152,93.044,106.0]
[1645143458474,1.48978919,93.17,93.071,4.54]
[1645143458739,1.48978919,93.183,93.082,51.19667004]
[1645143458883,1.48978919,93.189,93.083,106.0]
[1645143459183,1.48978919,93.195,93.091,5.0]
[1645143459412,1.48978919,93.208,93.1,12.93]
[1645143459606,1.48978919,93.213,93.101,39.04552989]
[1645143459806,1.48978919,93.213,93.11,16.1053]
[1645143460008,48.8109,93.225,93.12,12.93]
[1645143460209,48.8109,93.225,93.121,52.38967075]
[1645143460412,1.48978919,93.222,93.121,52.38967075]
[1645143460611,1.48978919,93.229,93.122,2.52666602]
[1645143460820,1.48978919,93.227,93.13,16.1041]
[1645143461012,2.52666602,93.221,93.121,52.38967075]
[1645143461408,5.366,93.22,93.121,52.38967075]
[1645143462216,5.366,93.227,93.121,52.38967075]
[1645143462408,5.366,93.227,93.1,12.93]
[1645143462610,2.52666602,93.219,93.1,12.93]
[1645143462811,1.48978919,93.215,93.1,12.93]
[1645143463011,5.367,93.214,93.1,12.93]
[1645143463214,2.52666602,93.214,93.1,12.93]
[1645143463412,2.52666602,93.214,93.101,44.65477069]
[1645143463611,5.367,93.213,93.11,16.1088]
[1645143464112,2.52666602,93.212,93.11,16.1088]
[1645143464316,5.367,93.211,93.11,16.1088]
[1645143464510,5.367,93.211,93.101,44.65477069]
[1645143464511,106.0,93.211,93.101,44.65477069]
[1645143464717,106.0,93.209,93.101,44.65477069]
[1645143464910,2.52666602,93.21,93.101,44.65477069]
[1645143465142,18.63766602,93.21,93.101,44.65477069]
[1645143465310,5.367,93.209,93.101,44.65477069]
[1645143465512,7.89366602,93.209,93.101,44.65477069]
[1645143465910,108.52666602,93.208,93.101,44.65477069]
[1645143466110,106.0,93.206,93.101,44.65477069]
[1645143466312,16.113,93.2,93.101,44.65477069]
[1645143466713,2.52666602,93.205,93.101,44.65477069]
[1645143466914,5.367,93.204,93.101,44.65477069]
[1645143467110,5.367,93.205,93.101,44.65477069]
[1645143467518,2.52666602,93.204,93.101,44.65477069]
[1645143467713,5.367,93.203,93.101,44.65477069]
[1645143468115,5.367,93.209,93.101,44.65477069]
[1645143469314,106.0,93.208,93.11,16.1092]
[1645143469531,15.5,93.21,93.11,16.1092]
[1645143469532,106.0,93.206,93.11,16.1092]
[1645143469916,106.0,93.204,93.101,44.65477069]
[1645143470117,106.0,93.202,93.101,44.65477069]
[1645143470337,106.0,93.199,93.09,16.1111]
[1645143470917,2.52666602,93.198,93.09,16.1111]
[1645143471117,106.0,93.196,93.09,16.1111]
[1645143471318,106.0,93.196,93.086,47.646]
[1645143471319,106.0,93.194,93.091,44.90792866]
[1645143471519,5.368,93.195,93.091,44.90792866]
[1645143471520,106.0,93.189,93.091,44.90792866]
[1645143472120,2.52666602,93.188,93.091,44.90792866]
[1645143472318,106.0,93.186,93.091,44.90792866]
[1645143472519,106.0,93.184,93.091,44.90792866]
[1645143473018,106.0,93.179,93.08,16.1142]
[1645143473219,106.0,93.177,93.08,16.1142]
[1645143473819,106.0,93.177,93.081,53.82703508]
[1645143474220,106.0,93.177,93.09,16.1125]
[1645143474824,5.368,93.194,93.09,16.1125]
[1645143475020,47.8211,93.204,93.091,5.368]
[1645143475220,46.8211,93.204,93.091,5.368]
[1645143475420,46.8211,93.204,93.092,2.52666602]
[1645143475623,46.8211,93.204,93.11,16.1089]